Cogmind - Beta 14 @@@ ROGUE MODE // 2024.08.23 @ 01:08:01 Player: Zaros426 Result: Destroyed by XA-9BB(R) with Subdweller Shrapnel Launcher Performance ------------- Evolutions (0) 0 Regions Visited (1) 200 Robots Destroyed (28) 140 Value Destroyed (430) 430 Prototype IDs (2) 40 Alien Tech Used (0) 0 Bonus (-37) -37 TOTAL SCORE: 773 Bonus ------- Friendly Fire -37 Cogmind --------- Core Integrity 0/250 Matter 300/300 Energy 100/100 System Corruption 0% Temperature Cool (0) Movement Treading (320) Ox2 Location -10/Materials Parts ------- > --- POWER (1) -------- (None) > --- PROPULSION (2) --- Light Treads > --- UTILITY (2) ------ Heat Sink High-capacity Storage Unit > --- WEAPON (2) ------- Beam Cannon > --- INVENTORY (20) --- Improved Ion Engine Improved Ion Engine Improved Ion Engine High-capacity Storage Unit Structural Scanner Improved Terrain Scanner Seismic Detector Particle Gun Particle Gun Beam Cannon Grenade Launcher Mining Laser Peak State ------------ > --- POWER ------------ Improved Ion Engine > --- PROPULSION ------- Light Treads Compact Wheel > --- UTILITY ---------- Small Storage Unit Seismic Detector > --- WEAPON ----------- Particle Gun Particle Gun > --- INVENTORY -------- Ion Engine Improved Ion Engine Improved Ion Engine Improved Ion Engine Light Treads Improved Terrain Scanner Assault Rifle Mining Laser [Rating: 11] Favorites ----------- Power Improved Ion Engine Engine Improved Ion Engine Propulsion Light Treads Treads Light Treads Wheel Compact Wheel Utility High-capacity Storage Unit Device Seismic Detector Storage High-capacity Storage Unit Weapon Beam Cannon Energy Gun EM Pulse Gun Energy Cannon Beam Cannon Build | -11 -10 ------- Run | Yrd Mat Slots Evolved . | . . Power . | . . Propulsion . | . . Utility . | . . Weapon . | . . Parts Attached 15 | 7 8 Power 2 | 1 1 Engine 2 | 1 1 Core . | . . Reactor . | . . Propulsion 3 | 2 1 Treads 2 | 1 1 Leg . | . . Wheel 1 | 1 . Hover . | . . Flight . | . . Utility 4 | 2 2 Device 2 | 1 1 Storage 2 | 1 1 Processor . | . . Hackware . | . . Protection . | . . Artifact . | . . Weapon 6 | 2 4 Energy Gun 4 | 2 2 Energy Cannon 2 | . 2 Ballistic Gun . | . . Ballistic Cannon . | . . Launcher . | . . Special Weapon . | . . Impact Weapon . | . . Slashing Weapon . | . . Piercing Weapon . | . . Special Melee Weapon . | . . Unidentified Prototypes . | . . Parts Lost 3 | . 3 Power 1 | . 1 Propulsion 1 | . 1 Utility . | . . Weapon 1 | . 1 Highest Loss Streak 3 | . 3 To Critical Strikes . | . . Average Slot Usage (%) 99 | . 99 Engine 14 | . 14 Treads 26 | . 26 Wheel 1 | . 1 Device 14 | . 14 Storage 14 | . 14 Energy Gun 2 | . 2 Energy Cannon 25 | . 25 Peak Build Rating 11 | 7 11 Average Rating 8 | 5 9 On Entrance 3 | . 7 Naked Turns . | . . Heaviest Build 54 | 15 54 Greatest Support 40 | 20 40 Greatest Overweight (x) 2 | . 2 Average Overweight (x) . | . . Largest Inventory Capacity 20 | 8 20 Average Capacity 16 | 7 19 Most Carried 12 | 4 12 Average Carried 8 | 2 10 Final Capacity 20 | 8 20 Final Carried 12 | 4 12 Class Distribution -------------------- 100% | Mutant Dominant Class ---------------- Mutant | -10/Materials Resources | -11 -10 ----------- Run | Yrd Mat Matter Collected 345 | 260 85 Remotely . | . . Salvage Created 763 | 268 495 Parts 46 | 25 21 Haulers Intercepted . | . . Recyclers Shooed 1 | 1 . Parts Field Recycled . | . . Retrieved Matter . | . . Parts Self-Destructed . | . . Prevented . | . . Kills | -11 -10 ------- Run | Yrd Mat Combat Hostiles Destroyed 11 | . 11 Cannons 11 | . 11 Classes Destroyed 8 | 3 5 Worker 4 | 2 2 Builder 2 | . 2 Tunneler 8 | 8 . Recycler 1 | 1 . Operator 1 | . 1 Watcher 1 | . 1 Swarmer 3 | . 3 Grunt 8 | . 8 Best Kill Streak 5 | 4 5 Combat Bots Only 3 | . 3 Max Kills in Single Turn 1 | 1 1 Gunslinging . | . . Exploded . | . . Melee . | . . Uniques/NPCs Destroyed . | . . Combat | -11 -10 -------- Run | Yrd Mat Hostile Shots Fired 74 | . 74 Missed 21 | . 21 Damage Taken 807 | . 807 Core 271 | . 271 Absorbed by Shields . | . . Core Remaining (%) 100 | 100 . Volleys Fired 66 | 30 36 Largest 2 | 2 2 Hottest 120 | 90 120 Shots Fired 105 | 33 72 Gun 33 | 33 . Cannon 72 | . 72 Launcher . | . . Special . | . . Kinetic . | . . Thermal 102 | 30 72 Explosive . | . . Electromagnetic 3 | 3 . Robot Hit Streak 6 | 5 6 Robot Miss Streak 4 | 4 3 Penetration Max . | . . Secondary Targets . | . . Shots Hit Robots 60 | 21 39 Core Hits 30 | 12 18 Critical Kills 1 | . 1 Critical Parts Destroyed . | . . Critical Strikes 4 | 3 1 Burn 3 | 3 . Meltdown 1 | . 1 Melee Attacks . | . . Impact . | . . Slashing . | . . Piercing . | . . Sneak Attacks . | . . Combat Hostiles . | . . Follow-up Attacks . | . . Damage Inflicted 1005 | 264 741 Guns 264 | 264 . Cannons 741 | . 741 Explosions . | . . Melee . | . . Ramming . | . . Kinetic . | . . Thermal 979 | 238 741 Explosive . | . . Electromagnetic 26 | 26 . Impact . | . . Slashing . | . . Piercing . | . . Highest Corruption . | . . Average Corruption . | . . Corruption Purged . | . . Corruption Blocked . | . . Overload Shots . | . . Overflow Damage 24 | . 24 Projectiles 24 | . 24 Explosions . | . . Melee . | . . Knockbacks . | . . Impact . | . . Kinetic . | . . Secondary . | . . Self-Inflicted Damage . | . . Shots . | . . Rammed 1 | . 1 Targets Rammed 1 | . 1 Kicked . | . . Crushed . | . . Highest Temperature 315 | 80 315 Average Temperature 91 | 25 116 Received Heat Transfer 258 | . 258 Effects 1 | . 1 Energy Bleed 1 | . 1 Siege Activations . | . . Robots Corrupted . | . . Combat Hostiles . | . . Parts Fried . | . . Impact Corruptions . | . . Robots Melted 1 | . 1 Combat Hostiles . | . . Parts Melted 10 | 1 9 Heat Transferred 2479 | 925 1554 Parts Sabotaged . | . . Parts Stolen . | . . Parts Stripped . | . . Power Chain Reactions . | . . Alert | -11 -10 ------- Run | Yrd Mat Peak Influence 212 | 55 212 Initial 35 | . 35 Average 91 | 21 114 Maximum Alert Level 1 | . 1 Low Security (%) 98 | 100 98 Level 1 1 | . 1 Level 2 . | . . Level 3 . | . . Level 4 . | . . Level 5 . | . . High Security . | . . Max Security . | . . Squads Dispatched 1 | . 1 Investigation 1 | . 1 Extermination . | . . Reinforcement . | . . Assault . | . . Garrison . | . . Intercept . | . . Searches Triggered . | . . Construction Impeded . | . . Haulers Reinforced . | . . Active Scanning Responses . | . . Cargo Convoy Interrupts . | . . Stealth | -11 -10 --------- Run | Yrd Mat Distress Signals 2 | . 2 Communications Jammed . | . . Distress Signals . | . . Times Spotted 17 | . 17 Peak Tracking Total 6 | . 6 Tactical Retreats . | . . Traps | -11 -10 ------- Run | Yrd Mat Traps Triggered . | . . Indirectly . | . . Trap Hack Attempts . | . . Triggered . | . . Disarmed . | . . Reprogrammed . | . . Reused . | . . Traps Extracted . | . . Installed . | . . Triggered . | . . Machines | -11 -10 ---------- Run | Yrd Mat Machines Disabled 1 | . 1 Max in Single Turn 1 | . 1 Machines Repaired . | . . Machines Dismantled . | . . Machines Sabotaged . | . . Overloaded Fab Kills . | . . Hacking | -11 -10 --------- Run | Yrd Mat Machines Accessed 3 | . 3 Terminals 3 | . 3 Fabricators . | . . Repair Stations . | . . Recycling Units . | . . Scanalyzers . | . . Garrison Access . | . . Total Hacks 12 | . 12 Successful 8 | . 8 Failed 4 | . 4 Catastrophic . | . . Database Lockouts . | . . Manual 6 | . 6 Terminals 12 | . 12 Fabricators . | . . Repair Stations . | . . Recycling Units . | . . Scanalyzers . | . . Garrison Access . | . . Terminal Hacks 6 | . 6 Prototype ID Bank 1 | . 1 Branch Access Points 1 | . 1 Locate Traps 2 | . 2 Hauler Manifests 1 | . 1 Zone Layout 1 | . 1 Fabricator Hacks . | . . Repair Station Hacks . | . . Recycling Unit Hacks . | . . Scanalyzer . | . . Garrison Access Hacks . | . . Unauthorized Hacks 2 | . 2 Terminals 2 | . 2 Assimilate 1 | . 1 Botnet 1 | . 1 Fabricators . | . . Repair Stations . | . . Recycling Units . | . . Scanalyzers . | . . Garrison Access . | . . Data Cores Recovered . | . . Used . | . . Hacking Detections 3 | . 3 Full Trace Events 1 | . 1 Feedback Events . | . . Feedback Blocked . | . . Robot Schematics Acquired . | . . Robots Built . | . . Authchips . | . . Time . | . . Total Robot Build Rating . | . . Part Schematics Acquired . | . . Parts Built . | . . Authchips . | . . Time . | . . Total Part Build Rating . | . . Parts Repaired . | . . Time . | . . Parts Recycled . | . . Recycled Matter . | . . Retrieved Matter . | . . Retrieved Components . | . . Parts Scanalyzed . | . . Part Schematics Acquired . | . . Parts Damaged . | . . Bothacking | -11 -10 ------------ Run | Yrd Mat Used RIF Installer . | . . Robots Hacked . | . . Non-combat . | . . Combat . | . . Robot Hacks Applied . | . . Relay Couplers Released . | . . Fabnet Peak Effective % . | . . Robots Rewired . | . . Allies Hacked . | . . Hacks Repelled . | . . Allies | -11 -10 -------- Run | Yrd Mat Total Allies 1 | . 1 Largest Group 1 | . 1 Highest-Rated Group 10 | . 10 Highest-Rated Ally 10 | . 10 Total Orders . | . . Ally Attacks . | . . Total Damage . | . . Kills . | . . Allies Corrupted . | . . Allies Melted . | . . Intel | -11 -10 ------- Run | Yrd Mat Robot Analysis Total . | . . Derelict Logs Recovered . | . . Drone Launches . | . . Drone Recoveries . | . . Exploration | -11 -10 ------------- Run | Yrd Mat Turns Passed 877 | 215 662 Spaces Moved 347 | 137 210 Core 1 | 1 . Treads 180 | 2 178 Legs . | . . Wheels 166 | 134 32 Hover . | . . Flight . | . . Fastest Speed 50 | 50 100 Average Speed 172 | 100 220 Slowest Speed 320 | 160 320 Overloaded Moves . | . . Propulsion Burnouts . | . . Robots Hopped . | . . Cave-ins Triggered . | . . Exploration Rate (%) 19 | 3 35 Regions Visited 1 Branch Regions . Pre-discovered Areas . | . . Known Exits Taken . | . . Unknown Exits Taken 1 | 1 . Scrap Searched . | . . Spaces Dug . | . . Terrain Destroyed . | . . Melee . | . . Projectile . | . . AOE . | . . Terrain Rammed . | . . Walls Destroyed . | . . Machines Disabled . | . . Actions | -11 -10 --------- Run | Yrd Mat Total 514 | 177 337 Wait 64 | . 64 Move 346 | 136 210 Hop . | . . Pick Up 14 | 4 10 Fast Attach 11 | 7 4 Attach . | . . Detach . | . . Swap 4 | . 4 Drop 8 | . 8 Fire 66 | 30 36 Melee . | . . Ram . | . . Kick . | . . Crush 1 | . 1 Escape Stasis . | . . Rewire . | . . Trap . | . . Miscellaneous . | . . Route ------- -11/Scrapyard -10/Materials (discovered 1 exit: *Min) History --------- Turn | Location | Event 11 | -11/Scrapyard | Discovered new exit (range 16) 216 | -11/Scrapyard | Entered Materials 303 | -10/Materials | Build established: Mutant 715 | -10/Materials | Discovered new exit (range 12) 719 | -10/Materials | Identified exit to Mines 784 | -10/Materials | Core integrity fell below 50% 816 | -10/Materials | Derelicts attacked the area 878 | -10/Materials | Core integrity fell below 20% 878 | -10/Materials | Destroyed by XA-9BB(R) with Subdweller Shrapnel Launcher Last Messages --------------- 00804_ Welding Torch melted. 00804_ Terrain Scanner melted. 00814_ G-34 Mercenary destroyed. 00816_ ALERT: Derelict incursion detected, rerouting patrols to target area. 00824_ K-01 Serf collects debris. 00837_ R-06 Scavenger collects Aluminum Leg. 00839_ K-01 Serf collects debris. 00841_ R-06 Scavenger collects Aluminum Leg. 00843_ K-01 Serf collects debris. 00845_ R-06 Scavenger collects Aluminum Leg. 00847_ K-01 Serf collects debris. 00866_ W-16 Scout sends out distress signal. 00867_ K-01 Serf collects debris. 00872_ Beam Cannon destroyed. 00874_ K-01 Serf collects debris. 00875_ Nuclear Reactor explodes. 00875_ Electrolysis Chamber disabled. 00875_ Lgt. Treads destroyed. 00875_ Imp. Ion Engine destroyed. 00876_ The unstable cave ceiling collapses. Map ----- +----------------------------------------------------+ | | | | | ???????????????????????????????????????????????? | | ???????????????????????????????????????????????? | | ???????????????????????????????????????????????? | | ???????????????????????????????????????????????? | | ???????????????????????????????????????????????? | | ???????????????????????????????????????????????? | | ???????????????????????????????????????????????? | | ???????????????????????????????????????????????? | | ??????##"""##??????????????????????????????????? | | ?????##"|||"##?????????????????????????????????? | | ?????#"" ""#?????????????????????????????????? | | ?????# #??????#####??????????????????????? | | ?????# > #??????# ????#?????????????????? | | ?????# ######## ""??? #?????????????????? | | ?????# # ## ""?? #?????????????????? | | ?????## ## ## """ #?????????????????? | | ??????## ### ## #?????????????????? | | ???????# #?# """ ## """ #?????????????????? | | ???????# #?# """ ## """ #?????????????????? | | ???????# #?# """ ## "" #?????????????????? | | ??????## ###%% ;; ??????????????????? | | ??????# ##%##;# ;####### ""?????????? | | ??????# w + #???????? | | ??????# T % ^ @ ;#### #?????????????? | | ??????# k " # #???????????????? | | ??????# ## #???????????????? | | ??????######## " #?????????????? | | ???????####### # #?????????????? | | ???????# # #???????????????? | | ???????#! """#^ == #???????????????? | | ???????# """# == #???????????????? | | ???????# """# = #???????????????? | | ??###??# + # #???????????????? | | ?## ### # R^ % ## ???????????????? | | ?# #+#####RR"" ! ## """ """ ??????????????? | | ?# # #### """ ## """ """ #?????????????? | | ?# # """ # """ "?????????????????? | | ?#?## %+% ??????????????????? | | ????## # %# ?????????????????????? | | ?????##### % #???????????????????????? | | ?????????# ###" ^[[! #???????????????????????? | | ?????????# #?#T [! ##/########?????????????? | | ?????????# #?#" [! + ????????????? | | ?????????# #?# =% #####???????????????? | | ?#########"### #???????????????????? | | ?# ! %[ #^^^### #######???????????????????? | | ?# #^^^#?# #?????????????????????????? | | ?# + #?# #?????????????????????????? | +----------------------------------------------------+ Best States ------------- Heat Dissipation 35 Energy Generation 12 Energy Capacity 265 Matter Stores 300 Matter Capacity 300 Sight Range 16 Terrain Scan Density 10 Evasion (%) 40 Recoil Reduction 2 Item Schematics ----------------- None Robot Schematics ------------------ None Fabricated ------------ Nothing Alien Tech Used ----------------- None Achievements -------------- None Challenges ------------ None Game ------ Seed ImpulseParticleDriver Manual? 0 Play Time 00:07:38 Cumulative 26.7 hours Start 2024.08.23 @ 01:01:15 End 2024.08.23 @ 01:08:01 Sessions 1 Manual Loads 0 Difficulty Rogue Special Mode None Game No. 14 Rogue 14 Adventurer 0 Explorer 0 Win Type - Total 0 Types 0/0/0/0/0/0/0/0/0 Lore% 28 Gallery% 39 Achievement% 37 Wizard Run 0 Options --------- Layout 0 ASCII 0 Keyboard 0 Movement Mouse Keybinds 0 Fullscreen 1 Font 24/Smallcaps Map View 183x50 Zoom Use 0% Tactical HUD 1 Map Filters NONE Filters NONE Steam 0 RUN: ad7a52d6-c3ca-41f8-a83c-4f03d335964e